Cogmind - Beta 11 X7 @@@ ROGUE MODE // 2021.11.22 @ 04:14:00 Player: thingamajigger Result: Destroyed by B-75 Beast with Magnetic Acceleration Cannon Performance ------------- Evolutions (4) 2000 Regions Visited (12) 2400 Robots Destroyed (82) 410 Value Destroyed (3563) 3563 Prototype IDs (27) 540 Alien Tech Used (0) 0 Bonus (3138) 3138 TOTAL SCORE: 12051 Bonus ------- High Alert Combat Kills 142 Follower Combat Kills 600 Entered Garrisons 800 Used RIF Installer 1500 Aligned with FarCom 300 Friendly Fire -204 Cogmind --------- Core Integrity 0/850 Matter 289/300 Energy 210/210 System Corruption 4% Temperature Cool (12) Movement Walking (120) Location -6/Garrison Parts ------- > --- POWER (2) -------- Light Nuclear Core Light Angular Momentum Engine > --- PROPULSION (5) --- Carbon-fiber Leg Carbon-fiber Leg Carbon-fiber Leg Carbon-fiber Leg Carbon-fiber Leg > --- UTILITY (6) ------ Large Storage Unit Gravity Neutralizing Apparatus Relay Coupler [Swarmer] (34) Relay Coupler [Grunt] (8) Relay Coupler [Duelist] (31) Relay Coupler [Heavy] (14) > --- WEAPON (2) ------- Remote Datajack Longsword +1 > --- INVENTORY (15) --- Light Nuclear Core Light Angular Momentum Engine Carbon-fiber Leg Carbon-fiber Leg Carbon-fiber Leg Carbon-fiber Leg Carbon-fiber Leg VTOL Module VTOL Module Improved Transmission Jammer Relay Coupler [Swarmer] (46) Relay Coupler [Duelist] (23) Peak State ------------ > --- POWER ------------ Micro Nuclear Core Light Fission Core > --- PROPULSION ------- Gravmag System Gravmag System Gravmag System Cooled Aerolev Unit Cooled Aerolev Unit > --- UTILITY ---------- Large Storage Unit Energy Well Gravity Neutralizing Apparatus Improved Transmission Jammer Improved Weapon Shielding Relay Coupler [Sentry] > --- WEAPON ----------- Improved Datajack Longsword +1 > --- INVENTORY -------- Micro Nuclear Core Gravmag System Gravmag System Gravmag System Gravmag System Advanced Weight Redist. System Maneuvering Thrusters Relay Coupler [Grunt] Relay Coupler [Grunt] Relay Coupler [Duelist] Relay Coupler [Heavy] Proton Missile Launcher Katana [Rating: 72] Favorites ----------- Power Micro Nuclear Core Engine Ion Engine Power Core Micro Nuclear Core Propulsion Gravmag System Treads Light Treads Leg Carbon-fiber Leg Hover Unit Gravmag System Flight Unit Improved VTOL Module Utility Improved Weapon Shielding Device Gravity Neutralizing Apparatus Storage Small Storage Unit Hackware Relay Coupler [Grunt] Protection Improved Weapon Shielding Weapon Longsword +1 Energy Gun Small Laser Ballistic Gun Light Assault Rifle Ballistic Cannon Light Cannon Launcher Proton Missile Launcher Special Weapon Remote Datajack Impact Weapon Powered Hammer Slashing Weapon Longsword +1 Special Melee Weapon Improved Datajack Build | -11 -10 -10 -10 -9 -8 -8 -7 -7 -6 -6 -6 -6 ------- Run | Scr Mat Min Exi Min Mat Gar Fac Gar Fac Gar Fac Gar Slots Evolved 8 | . . . . . 4 . 2 . 2 . . . Power 1 | . . . . . . . 1 . . . . . Propulsion 3 | . . . . . 2 . 1 . . . . . Utility 4 | . . . . . 2 . . . 2 . . . Weapon . | . . . . . . . . . . . . . Parts Attached 160 | 6 . 2 . 8 24 11 18 8 18 17 36 12 Power 21 | 1 . . . 1 1 3 5 1 3 1 3 2 Engine 8 | 1 . . . 1 1 . 3 . . . 1 1 Core 13 | . . . . . . 3 2 1 3 1 2 1 Reactor . | . . . . . . . . . . . . . Propulsion 49 | 2 . . . 2 13 4 7 2 7 5 2 5 Treads 9 | 2 . . . . 2 2 3 . . . . . Leg 7 | . . . . 2 . . . . . . . 5 Wheel . | . . . . . . . . . . . . . Hover 25 | . . . . . 6 2 3 2 7 5 . . Flight 8 | . . . . . 5 . 1 . . . 2 . Utility 47 | 1 . . . 1 7 3 4 3 6 4 14 4 Device 23 | . . . . . 6 2 3 2 3 1 6 . Storage 6 | 1 . . . . 1 . . . 3 . . 1 Processor . | . . . . . . . . . . . . . Hackware 16 | . . . . . . . 1 1 . 3 8 3 Protection 2 | . . . . 1 . 1 . . . . . . Artifact . | . . . . . . . . . . . . . Weapon 43 | 2 . 2 . 4 3 1 2 2 2 7 17 1 Energy Gun 3 | . . . . 3 . . . . . . . . Energy Cannon . | . . . . . . . . . . . . . Ballistic Gun 4 | 2 . 2 . . . . . . . . . . Ballistic Cannon 1 | . . . . 1 . . . . . . . . Launcher 5 | . . . . . . . . . . 3 2 . Special Weapon 8 | . . . . . . . . 1 1 . 5 1 Impact Weapon 3 | . . . . . 1 . . . . . 2 . Slashing Weapon 13 | . . . . . 2 1 1 . . 3 6 . Piercing Weapon . | . . . . . . . . . . . . . Special Melee Weapon 6 | . . . . . . . 1 1 1 1 2 . Unidentified Prototypes 4 | . . . . . 1 . 1 . 2 . . . Corrupted Parts 2 | . . . . . . . . . . . . 2 System Corruption 3 | . . . . . . . . . . . . 3 Parts Lost 50 | . . 3 . 6 3 9 1 3 3 7 15 . Power 8 | . . . . 1 1 1 1 . . 1 3 . Propulsion 22 | . . 1 . 1 1 6 . 2 1 5 5 . Utility 11 | . . . . . . 2 . 1 1 1 6 . Weapon 9 | . . 2 . 4 1 . . . 1 . 1 . Highest Loss Streak 7 | . . 2 . 5 2 5 1 2 3 3 7 . Average Slot Usage (%) 83 | . 85 78 71 96 86 84 85 88 96 96 82 67 Engine 4 | . 14 14 14 13 4 1 3 . . . . 3 Core 5 | . . . . . . 7 6 13 13 13 10 . Treads 6 | . 28 22 14 . 3 5 17 . . . . . Leg 3 | . . . . 26 2 . . . . . . 11 Hover 11 | . . . . . 12 19 9 22 33 30 20 . Flight 1 | . . . . . 13 . 2 7 . . . . Device 10 | . . . . . 24 15 14 12 17 13 19 6 Storage 9 | . 14 14 14 14 9 9 7 7 12 13 7 . Hackware 6 | . . . . . . . . 1 . 5 9 31 Protection 3 | . . . . 12 2 8 7 7 6 4 . . Energy Gun 2 | . . . . 23 10 . . . . . . . Ballistic Gun 5 | . 28 27 28 . . . . . . . . . Special Weapon 1 | . . . . . . . . 3 3 . 1 5 Slashing Weapon 5 | . . . . . 3 16 12 7 6 6 3 6 Naked Turns . | . . . . . . . . . . . . . Heaviest Build 51 | 14 14 14 12 15 21 25 37 32 49 51 50 40 Greatest Support 87 | 40 40 40 20 23 46 40 68 34 57 57 48 87 Greatest Overweight (x) 8 | . . . . 2 2 7 5 1 1 1 8 1 Average Overweight (x) . | . . . . . . . . . . . . . Largest Inventory Capacity 15 | 8 8 8 8 8 10 10 10 10 15 15 15 15 Average Capacity 10 | 7 8 8 8 8 8 10 10 10 14 15 14 5 Most Carried 15 | . 2 6 8 8 9 9 10 10 15 15 15 12 Average Carried 8 | . . 4 6 6 7 6 8 8 11 13 14 5 Final Capacity 15 | 8 8 8 8 8 10 10 10 10 15 15 5 15 Final Carried 14 | . 2 6 8 8 8 9 10 10 13 14 5 12 Class Distribution -------------------- 48% | Bothacker-Mutant 30% | Mutant 17% | Scavenger-Mutant Dominant Class ---------------- Mutant | -10/Materials Mutant | -10/Mines Mutant | -10/Exiles Scavenger-Mutant | -9/Mines Scavenger-Mutant | -8/Materials Scavenger-Mutant | -8/Garrison Mutant | -7/Factory Scavenger-Mutant | -7/Garrison Bothacker-Mutant | -6/Factory Bothacker-Mutant | -6/Garrison Bothacker-Mutant | -6/Factory Bothacker-Mutant | -6/Garrison Resources | -11 -10 -10 -10 -9 -8 -8 -7 -7 -6 -6 -6 -6 ----------- Run | Scr Mat Min Exi Min Mat Gar Fac Gar Fac Gar Fac Gar Matter Collected 2203 | 196 178 172 . 112 157 196 96 160 167 198 186 385 Remotely . | . . . . . . . . . . . . . Salvage Created 3096 | . 347 115 . 267 239 600 232 373 213 361 349 . Parts 163 | . 18 11 . 18 15 32 12 17 7 17 16 . Haulers Intercepted 1 | . . . . . . . . . 1 . . . Recyclers Shooed . | . . . . . . . . . . . . . Parts Field Recycled . | . . . . . . . . . . . . . Retrieved Matter . | . . . . . . . . . . . . . Parts Self-Destructed . | . . . . . . . . . . . . . Prevented . | . . . . . . . . . . . . . Kills | -11 -10 -10 -10 -9 -8 -8 -7 -7 -6 -6 -6 -6 ------- Run | Scr Mat Min Exi Min Mat Gar Fac Gar Fac Gar Fac Gar Combat Hostiles Destroyed 60 | . 4 9 . 7 3 15 2 7 . 7 6 . Melee 32 | . . . . . 1 15 2 7 . 4 3 . Guns 21 | . 4 9 . 6 2 . . . . . . . Cannons 1 | . . . . 1 . . . . . . . . AOE 3 | . . . . . . . . . . 3 . . Classes Destroyed 15 | . 5 3 . 1 1 . 1 1 1 1 1 . Worker 7 | . 1 . . 1 . . . . 1 . 4 . Builder 2 | . . . . . . . . . . . 2 . Hauler 1 | . . . . . . . . . 1 . . . Recycler 2 | . 1 . . . . . 1 . . . . . Operator 1 | . 1 . . . . . . . . . . . Watcher 12 | . 2 . . . 3 . 3 . 3 . 1 . Swarmer 19 | . . 5 . 1 . 4 . 3 . 3 3 . Grunt 21 | . 4 . . 5 . 9 . 1 . 2 . . Brawler 1 | . . . . . . . . 1 . . . . Duelist 1 | . . . . 1 . . . . . . . . Sentry 8 | . . . . . 3 2 . 1 . . 2 . Demolisher 1 | . . 1 . . . . . . . . . . Specialist 2 | . . . . . . . . . . 2 . . Programmer 4 | . . . . . . . 2 1 . . 1 . Assembled 3 | . . 3 . . . . . . . . . . Best Kill Streak 7 | . 7 3 . 3 2 4 2 3 2 3 3 . Combat Bots Only 4 | . 3 3 . 3 1 4 1 3 . 3 3 . Max Kills in Single Turn 2 | . 2 2 . 1 1 1 1 1 1 2 1 . Gunslinging . | . . . . . . . . . . . . . Exploded 2 | . . . . . . . . . . 2 . . Melee 1 | . . . . . 1 1 1 1 . 1 1 . Uniques/NPCs Destroyed . | . . . . . . . . . . . . . Combat | -11 -10 -10 -10 -9 -8 -8 -7 -7 -6 -6 -6 -6 -------- Run | Scr Mat Min Exi Min Mat Gar Fac Gar Fac Gar Fac Gar Damage Taken 5221 | . 144 433 . 703 406 601 171 230 212 660 1535 126 Core 1504 | . 12 64 . 169 103 237 15 34 . 86 740 44 Absorbed by Shields 107 | . . . . . . 47 . . . 60 . . Core Remaining (%) 58 | 100 . . . 2 . 38 . 93 . . . . Volleys Fired 144 | . 19 31 . 36 14 . . 1 2 11 10 20 Largest 2 | . 2 2 . 2 2 . . 1 1 1 1 1 Hottest 80 | . 40 40 . 80 80 . . 30 30 39 30 30 Shots Fired 233 | . 38 57 . 66 28 . . 1 2 11 10 20 Gun 178 | . 38 57 . 55 28 . . . . . . . Cannon 11 | . . . . 11 . . . . . . . . Launcher 11 | . . . . . . . . . . 11 . . Special 33 | . . . . . . . . 1 2 . 10 20 Kinetic 124 | . 38 57 . 29 . . . . . . . . Thermal 65 | . . . . 37 28 . . . . . . . Explosive . | . . . . . . . . . . . . . Electromagnetic 11 | . . . . . . . . . . 11 . . Robot Hit Streak 12 | . 5 4 . 9 4 . . 1 1 . 7 12 Robot Miss Streak 6 | . 3 4 . 6 2 . . . 1 . 1 1 Penetration Max . | . . . . . . . . . . . . . Secondary Targets 2 | . . . . 2 . . . . . . . . Max Gunslinging Chain 1 | . . . . 1 . . . . . . . . Shots Hit Robots 281 | . 23 28 . 40 30 33 14 20 12 14 51 16 Core Hits 107 | . 13 12 . 16 9 16 6 9 5 12 9 . Critical Kills . | . . . . . . . . . . . . . Critical Parts Destroyed 1 | . . . . . . . . . . . 1 . Critical Strikes 6 | . . . . 2 . 2 . 1 . . 1 . Blast 2 | . . . . 2 . . . . . . . . Smash 1 | . . . . . . . . . . . 1 . Sever 3 | . . . . . . 2 . 1 . . . . Melee Attacks 266 | . . . . . 20 43 23 32 13 49 79 7 Impact 54 | . . . . . 13 . . . . . 41 . Slashing 188 | . . . . . 7 43 21 27 13 36 34 7 Piercing . | . . . . . . . . . . . . . Sneak Attacks 17 | . . . . . . . 2 . 2 2 11 . Combat Hostiles 2 | . . . . . . . . . . 1 1 . Follow-up Attacks 11 | . . . . . . 3 2 . . . 6 . Damage Inflicted 8179 | . 296 329 . 450 507 1405 731 934 774 515 2238 . Guns 1155 | . 296 329 . 335 195 . . . . . . . Cannons 115 | . . . . 115 . . . . . . . . Explosions 238 | . . . . . . . . . . 238 . . Melee 6671 | . . . . . 312 1405 731 934 774 277 2238 . Ramming . | . . . . . . . . . . . . . Kinetic 861 | . 296 329 . 236 . . . . . . . . Thermal 409 | . . . . 214 195 . . . . . . . Explosive . | . . . . . . . . . . . . . Electromagnetic 238 | . . . . . . . . . . 238 . . Impact 960 | . . . . . 192 . . . . . 768 . Slashing 5711 | . . . . . 120 1405 731 934 774 277 1470 . Piercing . | . . . . . . . . . . . . . Highest Corruption 4 | . . . . . 3 3 1 1 . . 1 4 Average Corruption 2 | . . . . . 3 3 1 1 . . 1 2 Corruption Purged . | . . . . . . . . . . . . . Effects 42 | . . . . . 7 17 1 2 . . 1 14 Message Errors 13 | . . . . . 3 3 . 2 . . 1 4 Matter Fused 9 | . . . . . . 5 . . . . . 4 Heat Flow Errors 5 | . . . . . 2 3 . . . . . . Energy Discharges 5 | . . . . . . 1 1 . . . . 3 Data Loss (minor) 10 | . . . . . 2 5 . . . . . 3 Overload Shots . | . . . . . . . . . . . . . Overflow Damage 923 | . . . . . . 40 176 . 78 1 628 . Projectiles . | . . . . . . . . . . . . . Explosions 1 | . . . . . . . . . . 1 . . Melee 922 | . . . . . . 40 176 . 78 . 628 . Knockbacks 8 | . . . . 4 . . . . . . 4 . Impact 4 | . . . . . . . . . . . 4 . Kinetic 3 | . . . . 3 . . . . . . . . Secondary 1 | . . . . 1 . . . . . . . . Self-Inflicted Damage 12 | . . . . . . . . . . 12 . . Shots 1 | . . . . . . . . . . 1 . . Rammed . | . . . . . . . . . . . . . Targets Rammed . | . . . . . . . . . . . . . Kicked . | . . . . . . . . . . . . . Crushed . | . . . . . . . . . . . . . Highest Temperature 262 | . . . . 245 262 242 . 15 16 8 18 . Average Temperature 81 | . . . . 90 89 108 . 15 11 3 9 . Received Heat Transfer 1044 | . 78 . . 213 117 282 . 42 . 135 138 39 Effects 2 | . . . . 2 . . . . . . . . Energy Bleed 1 | . . . . 1 . . . . . . . . Interference 1 | . . . . 1 . . . . . . . . Siege Activations . | . . . . . . . . . . . . . Robots Corrupted . | . . . . . . . . . . . . . Combat Hostiles . | . . . . . . . . . . . . . Parts Fried 5 | . . . . . . . . . . . 5 . Impact Corruptions 11 | . . . . . . . . . . . 11 . Robots Melted . | . . . . . . . . . . . . . Combat Hostiles . | . . . . . . . . . . . . . Parts Melted 3 | . . . . 1 2 . . . . . . . Heat Transferred 950 | . . . . 500 450 . . . . . . . Parts Sabotaged . | . . . . . . . . . . . . . Parts Stolen . | . . . . . . . . . . . . . Parts Stripped . | . . . . . . . . . . . . . Power Chain Reactions . | . . . . . . . . . . . . . Missiles Intercepted . | . . . . . . . . . . . . . Alert | -11 -10 -10 -10 -9 -8 -8 -7 -7 -6 -6 -6 -6 ------- Run | Scr Mat Min Exi Min Mat Gar Fac Gar Fac Gar Fac Gar Peak Influence 831 | . 140 139 . 150 110 576 374 359 232 831 482 352 Initial 436 | . . 54 . . . 24 302 65 188 161 436 79 Average 208 | . 88 80 . 65 49 338 186 178 200 513 234 194 Maximum Alert Level 3 | . . . . . . 2 1 1 1 3 2 1 Low Security (%) 59 | 100 100 100 . 100 100 19 66 56 49 6 47 55 Level 1 24 | . . . . . . 35 33 43 50 23 18 44 Level 2 13 | . . . . . . 45 . . . 44 33 . Level 3 2 | . . . . . . . . . . 25 . . Level 4 . | . . . . . . . . . . . . . Level 5 . | . . . . . . . . . . . . . High Security . | . . . . . . . . . . . . . Max Security . | . . . . . . . . . . . . . Squads Dispatched 9 | . 1 . . . . . 2 . 1 . 5 . Investigation 1 | . . . . . . . . . . . 1 . Extermination 4 | . . . . . . . 2 . 1 . 1 . Reinforcement 3 | . 1 . . . . . . . . . 2 . Assault 1 | . . . . . . . . . . . 1 . Garrison . | . . . . . . . . . . . . . Intercept . | . . . . . . . . . . . . . Construction Impeded . | . . . . . . . . . . . . . Haulers Reinforced . | . . . . . . . . . . . . . Active Scanning Responses . | . . . . . . . . . . . . . Cargo Convoy Interrupts . | . . . . . . . . . . . . . Stealth | -11 -10 -10 -10 -9 -8 -8 -7 -7 -6 -6 -6 -6 --------- Run | Scr Mat Min Exi Min Mat Gar Fac Gar Fac Gar Fac Gar Distress Signals 5 | . 2 . . . 2 . . . . . 1 . Communications Jammed 19 | . . . . . . . . . 2 . 17 . Distress Signals 19 | . . . . . . . . . 2 . 17 . Times Spotted 157 | . 7 17 . 7 12 23 7 14 3 25 28 14 Peak Tracking Total 6 | . 5 3 . 3 3 6 1 5 2 6 5 6 Tactical Retreats 31 | . . 5 . . . 10 . 4 . 3 4 5 Traps | -11 -10 -10 -10 -9 -8 -8 -7 -7 -6 -6 -6 -6 ------- Run | Scr Mat Min Exi Min Mat Gar Fac Gar Fac Gar Fac Gar Traps Triggered 26 | . . . . . . 8 1 2 2 9 1 3 Indirectly 3 | . . . . . . . . . . 3 . . Trap Hack Attempts 1 | . . . . . . . . . . . 1 . Triggered . | . . . . . . . . . . . . . Disarmed . | . . . . . . . . . . . . . Reprogrammed . | . . . . . . . . . . . . . Reused . | . . . . . . . . . . . . . Traps Extracted . | . . . . . . . . . . . . . Installed . | . . . . . . . . . . . . . Triggered 1 | . . . . . . . . . . . 1 . Machines | -11 -10 -10 -10 -9 -8 -8 -7 -7 -6 -6 -6 -6 ---------- Run | Scr Mat Min Exi Min Mat Gar Fac Gar Fac Gar Fac Gar Machines Disabled 12 | . . . . 1 . 1 . 2 . 6 1 1 Max in Single Turn 2 | . . . . 1 . 1 . 1 . 2 1 1 Garrison Relay 5 | . . . . . . 1 . 1 . 2 . 1 Machines Sabotaged . | . . . . . . . . . . . . . Garrisons Compromised . | . . . . . . . . . . . . . Overloaded Fab Kills . | . . . . . . . . . . . . . Fab Network Shutdowns . | . . . . . . . . . . . . . Hacking | -11 -10 -10 -10 -9 -8 -8 -7 -7 -6 -6 -6 -6 --------- Run | Scr Mat Min Exi Min Mat Gar Fac Gar Fac Gar Fac Gar Machines Accessed 14 | . 1 1 1 . 4 . 2 . 1 . 4 . Terminals 7 | . 1 . . . 3 . 1 . . . 2 . Fabricators 1 | . . . . . . . . . . . 1 . Repair Stations . | . . . . . . . . . . . . . Recycling Units . | . . . . . . . . . . . . . Scanalyzers . | . . . . . . . . . . . . . Garrison Access 4 | . . . . . 1 . 1 . 1 . 1 . Total Hacks 28 | . 5 1 1 . 7 . 6 . 1 . 7 . Successful 17 | . 3 1 1 . 4 . 4 . 1 . 3 . Failed 11 | . 2 . . . 3 . 2 . . . 4 . Catastrophic 1 | . . . . . . . . . . . 1 . Database Lockouts . | . . . . . . . . . . . . . Manual 19 | . 5 . 1 . 5 . 5 . . . 3 . Terminals 20 | . 5 . . . 6 . 5 . . . 4 . Fabricators 2 | . . . . . . . . . . . 2 . Repair Stations . | . . . . . . . . . . . . . Recycling Units . | . . . . . . . . . . . . . Scanalyzers . | . . . . . . . . . . . . . Garrison Access 4 | . . . . . 1 . 1 . 1 . 1 . Terminal Hacks 7 | . 1 1 1 . 1 . 2 . . . 1 . Open Door 1 | . . 1 . . . . . . . . . . Terminal Index 4 | . 1 . . . 1 . 1 . . . 1 . Locate Traps 1 | . . . . . . . 1 . . . . . EX-Prototype ID Bank 1 | . . . 1 . . . . . . . . . Fabricator Hacks . | . . . . . . . . . . . . . Repair Station Hacks . | . . . . . . . . . . . . . Recycling Unit Hacks . | . . . . . . . . . . . . . Scanalyzer . | . . . . . . . . . . . . . Garrison Access Hacks 4 | . . . . . 1 . 1 . 1 . 1 . Unlock Access 4 | . . . . . 1 . 1 . 1 . 1 . Unauthorized Hacks 6 | . 2 . . . 2 . 1 . . . 1 . Terminals 6 | . 2 . . . 2 . 1 . . . 1 . Track 1 | . . . . . . . . . . . 1 . Assimilate 1 | . . . . . 1 . . . . . . . Botnet 3 | . 1 . . . 1 . 1 . . . . . Operators 1 | . 1 . . . . . . . . . . . Fabricators . | . . . . . . . . . . . . . Repair Stations . | . . . . . . . . . . . . . Recycling Units . | . . . . . . . . . . . . . Scanalyzers . | . . . . . . . . . . . . . Garrison Access . | . . . . . . . . . . . . . Data Cores Recovered 1 | . . . . . . . . . . . 1 . Used . | . . . . . . . . . . . . . Hacking Detections 10 | . 1 . . . 3 . 2 . 1 . 3 . Full Trace Events . | . . . . . . . . . . . . . Feedback Events . | . . . . . . . . . . . . . Feedback Blocked . | . . . . . . . . . . . . . Robot Schematics Acquired . | . . . . . . . . . . . . . Robots Built . | . . . . . . . . . . . . . Matter . | . . . . . . . . . . . . . Time . | . . . . . . . . . . . . . Total Robot Build Rating . | . . . . . . . . . . . . . Part Schematics Acquired . | . . . . . . . . . . . . . Parts Built . | . . . . . . . . . . . . . Matter . | . . . . . . . . . . . . . Time . | . . . . . . . . . . . . . Total Part Build Rating . | . . . . . . . . . . . . . Parts Repaired . | . . . . . . . . . . . . . Time . | . . . . . . . . . . . . . Parts Recycled . | . . . . . . . . . . . . . Recycled Matter . | . . . . . . . . . . . . . Retrieved Matter . | . . . . . . . . . . . . . Retrieved Components . | . . . . . . . . . . . . . Parts Scanalyzed . | . . . . . . . . . . . . . Part Schematics Acquired . | . . . . . . . . . . . . . Parts Damaged . | . . . . . . . . . . . . . Bothacking | -11 -10 -10 -10 -9 -8 -8 -7 -7 -6 -6 -6 -6 ------------ Run | Scr Mat Min Exi Min Mat Gar Fac Gar Fac Gar Fac Gar Used RIF Installer 3 | . . . . . . 1 . 1 . 1 . . Zone Cloak 1 | . . . . . . . . 1 . . . . Robot Detection 1 | . . . . . . . . . . 1 . . Robots Hacked 25 | . . . . . . . 1 2 . 7 7 8 Non-combat 2 | . . . . . . . . . . . 2 . Combat 23 | . . . . . . . 1 2 . 7 5 8 Robot Hacks Applied 31 | . . . . . . . 2 4 . 7 10 8 purge_threat 2 | . . . . . . . . . . . 2 . block_reporting 2 | . . . . . . . . . . . 2 . find_garrison 2 | . . . . . . . 1 . . . 1 . overload_power 1 | . . . . . . . . 1 . . . . amplify_resonance 1 | . . . . . . . 1 . . . . . overwrite_iff 8 | . . . . . . . . 3 . 3 2 . formatsys_low 1 | . . . . . . . . . . . 1 . formatsys_high 14 | . . . . . . . . . . 4 2 8 Relay Couplers Released 20 | . . . . . . 4 . 3 . 9 . 4 Machine Destruction 20 | . . . . . . 4 . 3 . 9 . 4 Attached 16 | . . . . . . . 1 1 . 3 8 3 Robots Rewired 1 | . . . . . . . . . 1 . . . Allies Hacked . | . . . . . . . . . . . . . Hacks Repelled . | . . . . . . . . . . . . . Allies | -11 -10 -10 -10 -9 -8 -8 -7 -7 -6 -6 -6 -6 -------- Run | Scr Mat Min Exi Min Mat Gar Fac Gar Fac Gar Fac Gar Total Allies 26 | . . 2 . . 1 . . 2 1 7 5 8 Largest Group 4 | . . 2 . . 1 . . 1 1 4 2 4 Highest-Rated Group 140 | . . 41 . . 10 . . 16 12 140 82 137 Highest-Rated Ally 82 | . . 31 . . 10 . . 16 12 47 82 47 Total Orders 17 | . . . . . . . . . . 7 4 6 STAY 10 | . . . . . . . . . . 4 2 4 FOLLOW 7 | . . . . . . . . . . 3 2 2 Ally Attacks 111 | . . 6 . . . . . 15 6 44 4 36 Total Damage 2137 | . . 82 . . . . . 209 . 897 178 771 Kills 21 | . . 1 . . . . . 2 . 10 1 7 Allies Corrupted . | . . . . . . . . . . . . . Allies Melted 1 | . . 1 . . . . . . . . . . Intel | -11 -10 -10 -10 -9 -8 -8 -7 -7 -6 -6 -6 -6 ------- Run | Scr Mat Min Exi Min Mat Gar Fac Gar Fac Gar Fac Gar Robot Analysis Total . | . . . . . . . . . . . . . Derelict Logs Recovered 1 | . . 1 . . . . . . . . . . Drone Launches . | . . . . . . . . . . . . . Drone Recoveries . | . . . . . . . . . . . . . Exploration | -11 -10 -10 -10 -9 -8 -8 -7 -7 -6 -6 -6 -6 ------------- Run | Scr Mat Min Exi Min Mat Gar Fac Gar Fac Gar Fac Gar Turns Passed 8815 | 57 203 857 612 584 529 802 1188 457 334 769 1178 1245 Spaces Moved 6904 | 32 90 461 382 236 479 622 742 390 659 1038 1187 586 Core 299 | 2 . . . 1 3 3 . . . . 39 251 Treads 1794 | 30 90 461 382 . 34 156 641 . . . . . Legs 606 | . . . . 235 36 . . . . . . 335 Wheels . | . . . . . . . . . . . . . Hover 4034 | . . . . . 236 463 101 390 659 1038 1147 . Flight 171 | . . . . . 170 . . . . . 1 . Fastest Speed 26 | 50 160 160 160 120 26 48 52 52 40 40 36 50 Average Speed 86 | 153 160 160 160 120 55 85 145 52 40 42 62 106 Slowest Speed 515 | 160 160 160 160 150 160 400 380 120 98 104 515 120 Overloaded Moves 130 | . . . . . . . . . . . 130 . Propulsion Burnouts . | . . . . . . . . . . . . . Robots Hopped 1 | . . . . . 1 . . . . . . . Cave-ins Triggered . | . . . . . . . . . . . . . Exploration Rate (%) 41 | 3 26 80 72 49 42 58 25 38 21 60 35 29 Regions Visited 12 Branch Regions 3 Pre-discovered Areas 1 | . . 1 . . . . . . . . . . Known Exits Taken 4 | . . . . . 1 . 1 . 1 . 1 . Unknown Exits Taken 5 | 1 1 1 1 1 . . . . . . . . Scrap Searched 4 | . . 2 . 2 . . . . . . . . Spaces Dug 48 | . . . . . 2 2 5 . . 18 17 4 Terrain Destroyed 48 | . . . . . 2 2 5 . . 18 17 4 Melee 48 | . . . . . 2 2 5 . . 18 17 4 Projectile . | . . . . . . . . . . . . . AOE . | . . . . . . . . . . . . . Terrain Rammed . | . . . . . . . . . . . . . Walls Destroyed . | . . . . . . . . . . . . . Machines Disabled . | . . . . . . . . . . . . . Actions | -11 -10 -10 -10 -9 -8 -8 -7 -7 -6 -6 -6 -6 --------- Run | Scr Mat Min Exi Min Mat Gar Fac Gar Fac Gar Fac Gar Total 9232 | 37 111 524 383 472 679 853 827 618 711 1301 1532 1184 Wait 1420 | . 1 25 . 189 114 105 36 154 3 89 202 502 Move 6891 | 31 89 460 381 235 476 620 742 389 658 1037 1187 586 Hop 1 | . . . . . 1 . . . . . . . Pick Up 71 | . 2 6 2 4 10 4 1 4 7 10 9 12 Fast Attach 71 | 6 . . . 4 14 6 13 3 9 1 8 7 Attach 45 | . . 2 . 4 6 3 1 4 4 6 11 4 Detach 8 | . . . . . . . 2 2 1 . 3 . Swap 44 | . . . . . 4 2 4 1 5 10 17 1 Drop 53 | . . . . . 20 2 7 2 8 2 12 . Fire 144 | . 19 31 . 36 14 . . 1 2 11 10 20 Melee 252 | . . . . . 20 39 21 32 13 49 71 7 Ram . | . . . . . . . . . . . . . Kick . | . . . . . . . . . . . . . Crush . | . . . . . . . . . . . . . Escape Stasis 228 | . . . . . . 72 . 26 . 85 . 45 Rewire 3 | . . . . . . . . . 1 1 1 . Trap 1 | . . . . . . . . . . . 1 . Miscellaneous . | . . . . . . . . . . . . . Route ------- -11/Scrapyard -10/Materials -10/Mines (discovered 3 exits: [*Mat x2] / *Exi) -10/Exiles -9/Mines (discovered 2 exits: *Mat x2) -8/Materials (discovered 2 exits: *Fac / Gar) -8/Garrison (discovered 2 exits: *Fac x2) -7/Factory -7/Garrison -6/Factory (discovered 3 exits: [*Low x2] / Gar) -6/Garrison (discovered 2 exits: *Fac x2) -6/Factory (discovered 4 exits: [*Fac x2] / [*Low] / Gar) -6/Garrison History --------- Turn | Location | Event 24 | -11/Scrapyard | Discovered new exit (range 16) 58 | -11/Scrapyard | Entered Materials 205 | -10/Materials | Discovered new exit (range 5) 261 | -10/Materials | Entered Mines 262 | -10/Mines | Assembled infested the area 267 | -10/Mines | Assisted by a Guerilla fighting off Assembled 306 | -10/Mines | Build established: Mutant 594 | -10/Mines | Found the Drone Emporium 821 | -10/Mines | Discovered new exit (range 7) 928 | -10/Mines | Learned location of Recycling (-8) 945 | -10/Mines | Discovered new exit (range 14) 1110 | -10/Mines | Deemed a non-threat by the Exiles lab entrance 1112 | -10/Mines | Discovered new exit (range 5) 1118 | -10/Mines | Entered Exiles 1158 | -10/Exiles | Met 8R-AWN 1184 | -10/Exiles | Met EX-HEX 1230 | -10/Exiles | Met EX-BIN 1248 | -10/Exiles | Met EX-DEC 1523 | -10/Exiles | Aligned with FarCom system 1524 | -10/Exiles | Given EX-Vault access code 1561 | -10/Exiles | Opened EX-Vault 1577 | -10/Exiles | Found Longsword +1 1608 | -10/Exiles | Warned to stay clear of 0b10 Research branches 1711 | -10/Exiles | Discovered new exit (range 14) 1730 | -10/Exiles | Left Exiles lab with Longsword +1 1730 | -10/Exiles | Entered Mines 1740 | -9/Mines | Met a Derelict bent on vengeance 1750 | -9/Mines | Core integrity fell below 50% 1763 | -9/Mines | Core integrity fell below 20% 1785 | -9/Mines | Lost 5 parts (1p1n3w) 2092 | -9/Mines | A weapon hastily lodged in a ceiling crevice suddenly fell to the ground 2202 | -9/Mines | Build established: Scavenger-Mutant 2300 | -9/Mines | Discovered new exit (range 10) 2314 | -9/Mines | Discovered new exit (range 13) 2314 | -9/Mines | Entered Materials 2314 | -8/Materials | Evolved 4 slots: Propulsion x2, Utility x2 2751 | -8/Materials | Discovered new exit (range 3) 2842 | -8/Materials | Identified exit to Garrison 2843 | -8/Materials | Entered Garrison 2874 | -8/Garrison | Triggered checkpoint 2931 | -8/Garrison | Discovered new exit (range 10) 2944 | -8/Garrison | Triggered checkpoint 2984 | -8/Garrison | Triggered checkpoint 3053 | -8/Garrison | Discovered new exit (range 10) 3060 | -8/Garrison | Installed Relay Interface Framework 3258 | -8/Garrison | Triggered checkpoint 3259 | -8/Garrison | Lost 3 parts (2n1u) 3308 | -8/Garrison | Core integrity fell below 50% 3336 | -8/Garrison | Lost 5 parts (1p3n1u) 3486 | -8/Garrison | Garrison Relay disabled 3645 | -8/Garrison | Entered Factory 3645 | -7/Factory | Evolved 2 slots: Power x1, Propulsion x1 3795 | -7/Factory | Build established: Bothacker-Mutant 4516 | -7/Factory | Build established: Mutant 4833 | -7/Factory | Identified exit to Garrison 4833 | -7/Factory | Entered Garrison 4836 | -7/Garrison | Expanded RIF knowledge: Zone Cloak 5086 | -7/Garrison | Build established: Scavenger-Mutant 5146 | -7/Garrison | Triggered checkpoint 5172 | -7/Garrison | Discovered new exit (range 13) 5197 | -7/Garrison | Garrison Relay disabled 5206 | -7/Garrison | Triggered checkpoint 5290 | -7/Garrison | Entered Factory 5290 | -6/Factory | Evolved 2 slots: Utility x2 5371 | -6/Factory | Discovered new exit (range 5) 5502 | -6/Factory | Build established: Bothacker-Mutant 5511 | -6/Factory | Discovered new exit (range 7) 5535 | -6/Factory | Lost 3 parts (1n1u1w) 5621 | -6/Factory | Identified exit to Garrison 5624 | -6/Factory | Entered Garrison 5658 | -6/Garrison | Triggered checkpoint 5684 | -6/Garrison | Garrison Relay disabled 5837 | -6/Garrison | Triggered checkpoint 5952 | -6/Garrison | Discovered new exit (range 15) 5961 | -6/Garrison | Expanded RIF knowledge: Robot Detection 5980 | -6/Garrison | Triggered checkpoint 6046 | -6/Garrison | Garrison Relay disabled 6159 | -6/Garrison | Triggered checkpoint 6225 | -6/Garrison | Lost 3 parts (1p2n) 6255 | -6/Garrison | Triggered checkpoint 6295 | -6/Garrison | Lost 3 parts (2n1u) 6388 | -6/Garrison | Discovered new exit (range 10) 6393 | -6/Garrison | Entered Factory 6408 | -6/Factory | Discovered new exit (range 9) 6441 | -6/Factory | Discovered new exit (range 15) 6743 | -6/Factory | First assault squad dispatched 6866 | -6/Factory | Discovered new exit (range 4) 7107 | -6/Factory | Lost 3 parts (1p1n1u) 7466 | -6/Factory | Core integrity fell below 50% 7483 | -6/Factory | Lost 7 parts (2p2n3u) 7541 | -6/Factory | Core integrity fell below 20% 7571 | -6/Factory | Identified exit to Garrison 7571 | -6/Factory | Entered Garrison 7620 | -6/Garrison | Garrison Relay disabled 7636 | -6/Garrison | Triggered checkpoint 8244 | -6/Garrison | Triggered checkpoint 8348 | -6/Garrison | Spotted B-75 Beast 8454 | -6/Garrison | Triggered checkpoint 8816 | -6/Garrison | Destroyed by B-75 Beast with Magnetic Acceleration Cannon Last Messages --------------- Installing primary routines, ETC: 6. 08676_ Reactivated Soldier 5g. 08680_ Acquired 17 matter. 08690_ Acquired 16 matter. 08691_ Acquired 52 matter. 08694_ Acquired Carbon-fiber Leg. 08699_ Acquired Lgt. Nuclear Core. 08700_ Acquired 26 matter. 08709_ Acquired 49 matter. 08711_ Acquired Carbon-fiber Leg. 08718_ Acquired Corrupted Carbon-fiber Leg. 08722_ Acquired Lgt. Angular Momentum Engine. 08727_ Acquired Lgt. Nuclear Core. 08732_ Acquired VTOL Module. 08748_ Acquired Carbon-fiber Leg. 08754_ System corrupted: Component data lost. 08767_ Acquired Carbon-fiber Leg. 08774_ System corrupted: Matter fused (-6). 08813_ System corrupted: Matter fused (-5). 08813_ Soldier 5g destroyed. Map ----- +----------------------------------------------------+ | ????????????????????# ########### #????????????? | | ???????????????????# #????????#[#????????????? | | ???????????????????#######????????# #???#####????? | | ??????????????????????????????????# #???# #????? | | ????????????????????????????????### ##### #????? | | ????????????????????????????????# #????? | | ????????????????????????????????# #????? | | ???????????????????????????????## ##########????? | | ???????????????????????????????#"*%#?????????????? | | ???????????????????????????????##%!#?????????????? | | ???????????????????????????????## #?????????????? | | ??????????????????????##########" #?????????????? | | ??????????????????????#% % " #?????????????? | | ?????????????????????##[######### #?????????????? | | ???????????????####??#![#???????# #?????????????? | | ???????????????# ?#; #???????# #?????????????? | | ????????######## ###;##??????# [#?????????????? | | ??????? ######## ^#?????????????? | | ??????? % #?????????????? | | ??????? #?????????????? | | ??????????# ## ## ###########?????????????? | | ??????????# ## ## ###?????????????????????? | | ?????????s" Y #?????????????????????? | | ?????????s" BB #?????????????????????? | | ?????????s" BB #?????????????????????? | | ?????????s" @ #?????????????????????? | | ??????????# ## ## ###?????????????????????? | | ??????????# ???# ?# #???????????????????????? | | ?????????????? ???????????????????????? | | ???????????? ???????????????????????? | | ???????????? #???????????????????????? | | ???????????? ##""""######???????????????????????? | | ???????????? ???l??b?????????????????????????????? | | ?????????????????????????????????????????????????? | | ?????????????????????????????????????????????????? | | ?????????????????????????????????????????????????? | | ?????????????????????????????????????????????????? | | ?????????????????????????????????????????????????? | | ?????????????????????????????????????????????????? | | ?????????????????????????????????????????????????? | | ?????????????????????????????????????????????????? | | ?????????????????????????????????????????????????? | | ?????????????????????????????????????????????????? | | ?????????????????????????????????????????????????? | | ?????????????????????????????????????????????????? | | ???????????????????????????g?????????????????????? | | ???????????????????????????g?????????????????????? | | ???????????????????????????g?????????????????????? | | ?????????????????????????????????????????????????? | | ?????????????????????????????????????????????????? | +----------------------------------------------------+ Best States ------------- Heat Dissipation 48 Energy Generation 28 Energy Capacity 560 Matter Stores 300 Matter Capacity 300 Sight Range 16 Terrain Scan Density 10 Jamming Range 12 Additional Mass Support 12 Core Shielding 20 Weapon Shielding 66 Melee Speed Boost 20 Evasion (%) 66 Recoil Reduction 3 Relay Coupler Types 145 Relay Coupler Value 5 Item Schematics ----------------- None Robot Schematics ------------------ None Fabricated ------------ Nothing Alien Tech Used ----------------- None Achievements -------------- None Challenges ------------ None Game ------ Seed FluxAntigravSteel Manual? 0 Play Time 01:13:38 Cumulative 116.8 hours Start 2021.11.18 @ 07:49:58 End 2021.11.22 @ 04:14:00 Sessions 4 Manual Loads 0 Difficulty Rogue Special Mode None Game No. 197 Rogue 180 Adventurer 4 Explorer 13 Win Type - Total 8 Types 6/0/0/2/0/0/0/0/0 Lore% 63 Gallery% 81 Achievement% 67 Wizard Run 0 Options --------- ASCII 0 Keyboard 1 Movement Numpad Keybinds 0 Fullscreen 1 Font 18/SmallcapsGlow Map View 76x50 Tactical HUD 1 Map Filters NONE Filters NONE Steam 1 RUN: 8ee498ee-70af-46cb-a610-5e003ba24120